Workbook

Sheet Sheet1
A2: Example of ABG highway and public transport accessibility statistic
A7: Combined Accessibility Stat | F7: =(L23*R15+L38*R13+L54*R14+L63*R15+L84*R16)/SUM(R12:R16) -> 0.3399528575
A10: What | B10: Description | D10: Time(mins) to facility | E10: exp(-at) | F10: Size of Facility | G10: Satisfaction at 0 Time | H10: Corrected Satisfaction for Time | I10: Dissatisfaction | J10: Dissatisfaction adjusted for size | K10: Satisfaction adjusted for size | L10: Cumulative Satisfied
D11: t | E11: E | F11: S | G11: W | H11: W*E | I11: 1-W*E | J11: (1-W*E)^S | K11: 1-(1-W*E)^S | L11: 1-ProductSum((1-W*E)^S) | P11: What | Q11: Description | R11: Worth | S11: Satisfaction | T11: ScalingTime | U11: SizeBase | V11: SizeInfo
A12: 1 | B12: =VLOOKUP($A12,$P$11:$V$16,2) -> Jobs | C12: =VLOOKUP($A12,$P$11:$V$16,5) -> -0.04 | D12: 4 | E12: =EXP(D12*C12) -> 0.852143789 | F12: 10 | G12: =VLOOKUP($A12,$P$11:$V$16,4) -> 0.001 | H12: =G12*E12 -> 0.000852143789 | I12: =1-H12 -> 0.9991478562 | J12: =I12^F12 -> 0.9915111647 | K12: =1-J12 -> 0.008488835326 | L12: =1-MultIt($J$12:J12) -> 0.008488835326 | P12: 1 | Q12: Jobs | R12: 10 | S12: 0.001 | T12: -0.04 | U12: 125.8903113 | V12: Ave jobs per OA EW
A13: 1 | B13: =VLOOKUP(A13,P$11:Q$16,2) -> Jobs | C13: =VLOOKUP($A13,$P$11:$V$16,5) -> -0.04 | D13: 5 | E13: =EXP(D13*C13) -> 0.8187307531 | F13: 15 | G13: =VLOOKUP($A13,$P$11:$V$16,4) -> 0.001 | H13: =G13*E13 -> 0.0008187307531 | I13: =1-H13 -> 0.9991812692 | J13: =I13^F13 -> 0.9877891732 | K13: =1-J13 -> 0.01221082679 | L13: =1-MultIt($J$12:J13) -> 0.02059600642 | P13: 2 | Q13: Workers | R13: 5 | S13: 0.001 | T13: -0.04 | U13: 147.0804375 | V13: Ave workers per OA EW
A14: 1 | B14: Jobs | C14: -0.04 | D14: 8 | E14: 0.7261490371 | F14: 10 | G14: 0.001 | H14: 0.0007261490371 | I14: 0.999273851 | J14: 0.9927621919 | K14: 0.0072378081 | L14: =1-MultIt($J$12:J14) -> 0.02768474458 | P14: 3 | Q14: Population | R14: 3 | S14: 0.002 | T14: -0.07 | U14: 309.1148792 | V14: Ave persons per oa EW
A15: 1 | B15: Jobs | C15: -0.04 | D15: 8 | E15: 0.7261490371 | F15: 70 | G15: 0.001 | H15: 0.0007261490371 | I15: 0.999273851 | J15: 0.9504222716 | K15: 0.04957772844 | L15: =1-MultIt($J$12:J15) -> 0.07588992627 | P15: 4 | Q15: Airports | R15: 2 | S15: 0.6 | T15: -0.025 | U15: 6211299 | V15: Passengers per year
A16: 1 | B16: Jobs | C16: -0.04 | D16: 8 | E16: 0.7261490371 | F16: 80 | G16: 0.001 | H16: 0.0007261490371 | I16: 0.999273851 | J16: 0.9435432975 | K16: 0.05645670246 | L16: =1-MultIt($J$12:J16) -> 0.1280621337 | P16: 5 | Q16: Stations | R16: 5 | S16: 0.3 | T16: -0.08 | U16: 1 | V16: Compsite Stat
A17: 1 | B17: Jobs | C17: -0.04 | D17: 14 | E17: 0.5712090638 | F17: 90 | G17: 0.001 | H17: 0.0005712090638 | I17: 0.9994287909 | J17: 0.949876309 | K17: 0.05012369101 | L17: =1-MultIt($J$12:J17) -> 0.1717668779
A18: 1 | B18: Jobs | C18: -0.04 | D18: 19 | E18: 0.467666427 | F18: 100 | G18: 0.001 | H18: 0.000467666427 | I18: 0.9995323336 | J18: 0.9542996277 | K18: 0.04570037232 | L18: =1-MultIt($J$12:J18) -> 0.20961744
A19: 1 | B19: Jobs | C19: -0.04 | D19: 20 | E19: 0.4493289641 | F19: 150 | G19: 0.001 | H19: 0.0004493289641 | I19: 0.999550671 | J19: 0.9348076513 | K19: 0.0651923487 | L19: =1-MultIt($J$12:J19) -> 0.2611443354
A20: 1 | B20: Jobs | C20: -0.04 | D20: 20 | E20: 0.4493289641 | F20: 170 | G20: 0.001 | H20: 0.0004493289641 | I20: 0.999550671 | J20: 0.9264426913 | K20: 0.07355730873 | L20: =1-MultIt($J$12:J20) -> 0.3154925697
K23: Accessibility Stat Jobs | L23: =L20 -> 0.3154925697
A25: What | B25: Description | D25: Time(mins) to facility | E25: exp(-at) | F25: Size of Facility | G25: Satisfaction at 0 Time | H25: Corrected Satisfaction for Time | I25: Dissatisfaction | J25: Dissatisfaction adjusted for size | K25: Satisfaction adjusted for size | L25: Cumulative Satisfied
D26: t | E26: E | F26: S | G26: W | H26: W*E | I26: 1-W*E | J26: (1-W*E)^S | K26: 1-(1-W*E)^S | L26: 1-ProductSum((1-W*E)^S)
A27: 2 | B27: =VLOOKUP($A27,$P$11:$V$16,2) -> Workers | C27: =VLOOKUP($A27,$P$11:$V$16,5) -> -0.04 | D27: 4 | E27: =EXP(D27*C27) -> 0.852143789 | F27: 12 | G27: =VLOOKUP($A27,$P$11:$V$16,4) -> 0.001 | H27: =G27*E27 -> 0.000852143789 | I27: =1-H27 -> 0.9991478562 | J27: =I27^F27 -> 0.9898220645 | K27: =1-J27 -> 0.0101779355 | L27: =1-MultIt($J$27:J27) -> 0.0101779355
A28: 2 | B28: =VLOOKUP(A28,P$11:Q$16,2) -> Workers | C28: =VLOOKUP($A28,$P$11:$V$16,5) -> -0.04 | D28: 5 | E28: =EXP(D28*C28) -> 0.8187307531 | F28: 16 | G28: =VLOOKUP($A28,$P$11:$V$16,4) -> 0.001 | H28: =G28*E28 -> 0.0008187307531 | I28: =1-H28 -> 0.9991812692 | J28: =I28^F28 -> 0.9869804398 | K28: =1-J28 -> 0.01301956016 | L28: =1-MultIt($J$27:J28) -> 0.02306498342
A29: 2 | B29: Workers | C29: -0.04 | D29: 8 | E29: 0.7261490371 | F29: 12 | G29: 0.001 | H29: 0.0007261490371 | I29: 0.999273851 | J29: 0.9913209288 | K29: 0.008679071244 | L29: =1-MultIt($J$27:J29) -> 0.03154387203
A30: 2 | B30: Workers | C30: -0.04 | D30: 8 | E30: 0.7261490371 | F30: 72 | G30: 0.001 | H30: 0.0007261490371 | I30: 0.999273851 | J30: 0.9490424763 | K30: 0.05095752373 | L30: =1-MultIt($J$27:J30) -> 0.08089399815
A31: 2 | B31: Workers | C31: -0.04 | D31: 8 | E31: 0.7261490371 | F31: 84 | G31: 0.001 | H31: 0.0007261490371 | I31: 0.999273851 | J31: 0.940805669 | K31: 0.05919433099 | L31: =1-MultIt($J$27:J31) -> 0.135299863
A32: 2 | B32: Workers | C32: -0.04 | D32: 14 | E32: 0.5712090638 | F32: 90 | G32: 0.001 | H32: 0.0005712090638 | I32: 0.9994287909 | J32: 0.949876309 | K32: 0.05012369101 | L32: =1-MultIt($J$27:J32) -> 0.1786418255
A33: 2 | B33: Workers | C33: -0.04 | D33: 19 | E33: 0.467666427 | F33: 101 | G33: 0.001 | H33: 0.000467666427 | I33: 0.9995323336 | J33: 0.9538533338 | K33: 0.04614666621 | L33: =1-MultIt($J$27:J33) -> 0.216544767
A34: 2 | B34: Workers | C34: -0.04 | D34: 20 | E34: 0.4493289641 | F34: 155 | G34: 0.001 | H34: 0.0004493289641 | I34: 0.999550671 | J34: 0.932709357 | K34: 0.06729064297 | L34: =1-MultIt($J$27:J34) -> 0.2692639734
A35: 2 | B35: Workers | C35: -0.04 | D35: 20 | E35: 0.4493289641 | F35: 180 | G35: 0.001 | H35: 0.0004493289641 | I35: 0.999550671 | J35: 0.9222883229 | K35: 0.0777116771 | L35: =1-MultIt($J$27:J35) -> 0.3260506956
K38: Accessibility Stat Workers | L38: =L35 -> 0.3260506956
A41: What | B41: Description | D41: Time(mins) to facility | E41: exp(-at) | F41: Size of Facility | G41: Satisfaction at 0 Time | H41: Corrected Satisfaction for Time | I41: Dissatisfaction | J41: Dissatisfaction adjusted for size | K41: Satisfaction adjusted for size | L41: Cumulative Satisfied
D42: t | E42: E | F42: S | G42: W | H42: W*E | I42: 1-W*E | J42: (1-W*E)^S | K42: 1-(1-W*E)^S | L42: 1-ProductSum((1-W*E)^S)
A43: 3 | B43: =VLOOKUP($A43,$P$11:$V$16,2) -> Population | C43: =VLOOKUP($A43,$P$11:$V$16,5) -> -0.07 | D43: 4 | E43: =EXP(D43*C43) -> 0.7557837415 | F43: 12 | G43: =VLOOKUP($A43,$P$11:$V$16,4) -> 0.002 | H43: =G43*E43 -> 0.001511567483 | I43: =1-H43 -> 0.9984884325 | J43: =I43^F43 -> 0.9820112322 | K43: =1-J43 -> 0.01798876783 | L43: =1-MultIt($J$43:J43) -> 0.01798876783
A44: 3 | B44: =VLOOKUP(A44,P$11:Q$16,2) -> Population | C44: =VLOOKUP($A44,$P$11:$V$16,5) -> -0.07 | D44: 5 | E44: =EXP(D44*C44) -> 0.7046880897 | F44: 16 | G44: =VLOOKUP($A44,$P$11:$V$16,4) -> 0.002 | H44: =G44*E44 -> 0.001409376179 | I44: =1-H44 -> 0.9985906238 | J44: =I44^F44 -> 0.9776867815 | K44: =1-J44 -> 0.02231321849 | L44: =1-MultIt($J$43:J44) -> 0.03990059902
A45: 3 | B45: Population | C45: -0.07 | D45: 8 | E45: 0.5712090638 | F45: 12 | G45: 0.002 | H45: 0.001142418128 | I45: 0.9988575819 | J45: 0.9863767932 | K45: 0.01362320684 | L45: =1-MultIt($J$43:J45) -> 0.05298023175
A46: 3 | B46: Population | C46: -0.07 | D46: 8 | E46: 0.5712090638 | F46: 72 | G46: 0.002 | H46: 0.001142418128 | I46: 0.9988575819 | J46: 0.9209945822 | K46: 0.07900541783 | L46: =1-MultIt($J$43:J46) -> 0.1277999242
A47: 3 | B47: Population | C47: -0.07 | D47: 8 | E47: 0.5712090638 | F47: 84 | G47: 0.002 | H47: 0.001142418128 | I47: 0.9988575819 | J47: 0.9084476825 | K47: 0.09155231753 | L47: =1-MultIt($J$43:J47) -> 0.2076518625
A48: 3 | B48: Population | C48: -0.07 | D48: 14 | E48: 0.3753110989 | F48: 90 | G48: 0.002 | H48: 0.0007506221977 | I48: 0.9992493778 | J48: 0.9346516696 | K48: 0.06534833041 | L48: =1-MultIt($J$43:J48) -> 0.2594304904
A49: 3 | B49: Population | C49: -0.07 | D49: 19 | E49: 0.2644772613 | F49: 101 | G49: 0.002 | H49: 0.0005289545226 | I49: 0.9994710455 | J49: 0.9479641999 | K49: 0.05203580015 | L49: =1-MultIt($J$43:J49) -> 0.2979666174
A50: 3 | B50: Population | C50: -0.07 | D50: 20 | E50: 0.2465969639 | F50: 155 | G50: 0.002 | H50: 0.0004931939279 | I50: 0.9995068061 | J50: 0.9263863413 | K50: 0.07361365872 | L50: =1-MultIt($J$43:J50) -> 0.3496458632
A51: 3 | B51: Population | C51: -0.07 | D51: 20 | E51: 0.2465969639 | F51: 180 | G51: 0.002 | H51: 0.0004931939279 | I51: 0.9995068061 | J51: 0.9150314837 | K51: 0.08496851626 | L51: =1-MultIt($J$43:J51) -> 0.4049054893
K54: Accessibility Stat population | L54: =L51 -> 0.4049054893
A56: What | B56: Description | D56: Time(mins) to facility | E56: exp(-at) | F56: Size of Facility | G56: Satisfaction at 0 Time | H56: Corrected Satisfaction for Time | I56: Dissatisfaction | J56: Dissatisfaction adjusted for size | K56: Satisfaction adjusted for size | L56: Cumulative Satisfied
D57: t | E57: E | F57: S | G57: W | H57: W*E | I57: 1-W*E | J57: (1-W*E)^S | K57: 1-(1-W*E)^S | L57: 1-ProductSum((1-W*E)^S)
A58: 4 | B58: =VLOOKUP($A58,$P$11:$V$16,2) -> Airports | C58: =VLOOKUP($A58,$P$11:$V$16,5) -> -0.025 | D58: 30 | E58: =EXP(D58*C58) -> 0.4723665527 | F58: 1 | G58: =VLOOKUP($A58,$P$11:$V$16,4) -> 0.6 | H58: =G58*E58 -> 0.2834199316 | I58: =1-H58 -> 0.7165800684 | J58: =I58^F58 -> 0.7165800684 | K58: =1-J58 -> 0.2834199316 | L58: =1-MultIt($J$58:J58) -> 0.2834199316
A59: 4 | B59: =VLOOKUP(A59,P$11:Q$16,2) -> Airports | C59: =VLOOKUP($A59,$P$11:$V$16,5) -> -0.025 | D59: 45 | E59: =EXP(D59*C59) -> 0.3246524674 | F59: 1.5 | G59: =VLOOKUP($A59,$P$11:$V$16,4) -> 0.6 | H59: =G59*E59 -> 0.1947914804 | I59: =1-H59 -> 0.8052085196 | J59: =I59^F59 -> 0.7225410768 | K59: =1-J59 -> 0.2774589232 | L59: =1-MultIt($J$58:J59) -> 0.4822414658
A60: 4 | B60: =VLOOKUP(A60,P$11:Q$16,2) -> Airports | C60: =VLOOKUP($A60,$P$11:$V$16,5) -> -0.025 | D60: 52 | E60: 0.272531793 | F60: 0.75 | G60: =VLOOKUP($A60,$P$11:$V$16,4) -> 0.6 | H60: 0.1635190758 | I60: 0.8364809242 | J60: 0.8746655692 | K60: 0.1253344308 | L60: =1-MultIt($J$58:J60) -> 0.547134437
K63: Accessibility Stat Workers | L63: =L60 -> 0.547134437
A71: What | B71: Description | D71: Time(mins) to facility | E71: exp(-at) | F71: Size of Facility | G71: Satisfaction at 0 Time | H71: Corrected Satisfaction for Time | I71: Dissatisfaction | J71: Dissatisfaction adjusted for size | K71: Satisfaction adjusted for size | L71: Cumulative Satisfied
D72: t | E72: E | F72: S | G72: W | H72: W*E | I72: 1-W*E | J72: (1-W*E)^S | K72: 1-(1-W*E)^S | L72: 1-ProductSum((1-W*E)^S)
A73: 5 | B73: =VLOOKUP($A73,$P$11:$V$16,2) -> Stations | C73: =VLOOKUP($A73,$P$11:$V$16,5) -> -0.08 | D73: 4 | E73: =EXP(D73*C73) -> 0.7261490371 | F73: 0.9 | G73: =VLOOKUP($A73,$P$11:$V$16,4) -> 0.3 | H73: =G73*E73 -> 0.2178447111 | I73: =1-H73 -> 0.7821552889 | J73: =I73^F73 -> 0.8016110361 | K73: =1-J73 -> 0.1983889639 | L73: =1-MultIt($J$73:J73) -> 0.1983889639
A74: 5 | B74: =VLOOKUP(A74,P$11:Q$16,2) -> Stations | C74: =VLOOKUP($A74,$P$11:$V$16,5) -> -0.08 | D74: 5 | E74: =EXP(D74*C74) -> 0.670320046 | F74: 1.2 | G74: =VLOOKUP($A74,$P$11:$V$16,4) -> 0.3 | H74: =G74*E74 -> 0.2010960138 | I74: =1-H74 -> 0.7989039862 | J74: =I74^F74 -> 0.7638243616 | K74: =1-J74 -> 0.2361756384 | L74: =1-MultIt($J$73:J74) -> 0.3877099621
A75: 5 | B75: Stations | C75: -0.08 | D75: 8 | E75: 0.527292424 | F75: 0.94 | G75: 0.3 | H75: 0.1581877272 | I75: 0.8418122728 | J75: 0.8505548745 | K75: 0.1494451255 | L75: =1-MultIt($J$73:J75) -> 0.4792137237
A76: 5 | B76: Stations | C76: -0.08 | D76: 8 | E76: 0.527292424 | F76: 2 | G76: 0.3 | H76: 0.1581877272 | I76: 0.8418122728 | J76: 0.7086479026 | K76: 0.2913520974 | L76: =1-MultIt($J$73:J76) -> 0.6309458976
A77: 5 | B77: Stations | C77: -0.08 | D77: 8 | E77: 0.527292424 | F77: 1.1 | G77: 0.3 | H77: 0.1581877272 | I77: 0.8418122728 | J77: 0.8274405081 | K77: 0.1725594919 | L77: =1-MultIt($J$73:J77) -> 0.694629686
A78: 5 | B78: Stations | C78: -0.08 | D78: 14 | E78: 0.3262797946 | F78: 2.3 | G78: 0.3 | H78: 0.09788393839 | I78: 0.9021160616 | J78: 0.7890482392 | K78: 0.2109517608 | L78: =1-MultIt($J$73:J78) -> 0.7590480914
A79: 5 | B79: Stations | C79: -0.08 | D79: 19 | E79: 0.218711887 | F79: 0.9 | G79: 0.3 | H79: 0.06561356609 | I79: 0.9343864339 | J79: 0.940749231 | K79: 0.05925076902 | L79: =1-MultIt($J$73:J79) -> 0.7733246773
A80: 5 | B80: Stations | C80: -0.08 | D80: 20 | E80: 0.201896518 | F80: 0.5 | G80: 0.3 | H80: 0.0605689554 | I80: 0.9394310446 | J80: 0.9692425107 | K80: 0.03075748927 | L80: =1-MultIt($J$73:J80) -> 0.7802966411
A81: 5 | B81: Stations | C81: -0.08 | D81: 20 | E81: 0.201896518 | F81: 0.4 | G81: 0.3 | H81: 0.0605689554 | I81: 0.9394310446 | J81: 0.9753173795 | K81: 0.02468262045 | L81: =1-MultIt($J$73:J81) -> 0.7857194957
K84: Accessaibility Stat Workers | L84: =L81 -> 0.7857194957
